Cogmind - Beta 17 @@@ ROGUE MODE // 2026.07.04 @ 18:48:41 Player: Scarlet Result: Destroyed by G-34 Mercenary with Small Laser Performance ------------- Evolutions (1) 500 Regions Visited (3) 600 Robots Destroyed (58) 290 Value Destroyed (1299) 1299 Prototype IDs (6) 120 Alien Tech Used (0) 0 Bonus (64) 64 TOTAL SCORE: 2873 Bonus ------- High Alert Combat Kills 64 Cogmind --------- Core Integrity 0/400 Matter 200/300 Energy 280/280 System Corruption 0% Temperature Cool (6) Movement Walking (120) Location -9/Storage Parts ------- > --- POWER (1) -------- Heavy Ion Engine > --- PROPULSION (4) --- Aluminum Leg Aluminum Leg Improved Hover Unit Improved Hover Unit > --- UTILITY (2) ------ Small Storage Unit Weight Redist. System > --- WEAPON (2) ------- Particle Cannon Advanced Beam Cannon > --- INVENTORY (8) ---- Heavy Ion Engine Flight Unit Improved Flight Unit Improved Flight Unit Drone Bay (2/2) Peak State ------------ > --- POWER ------------ Heavy Ion Engine > --- PROPULSION ------- Flight Unit Improved Flight Unit Improved Flight Unit Improved Flight Unit > --- UTILITY ---------- Small Storage Unit Drone Bay > --- WEAPON ----------- Improved Medium Laser Heavy Assault Rifle > --- INVENTORY -------- Heavy Ion Engine Flight Unit Flight Unit Drone Bay Particle Cannon Advanced Beam Cannon Advanced Beam Cannon Mini Grenade Launcher [Rating: 26] Favorites ----------- Power Heavy Ion Engine Engine Heavy Ion Engine Propulsion Flight Unit Treads Light Treads Leg Aluminum Leg Hover Unit Hover Unit Flight Unit Flight Unit Utility Small Storage Unit Device Weight Redist. System Storage Small Storage Unit Protection Propulsion Shielding Weapon Light Assault Rifle Energy Gun Medium Laser Energy Cannon Advanced Beam Cannon Ballistic Gun Light Assault Rifle Launcher Mini Grenade Launcher Build | -11 -10 -9 -9 ------- Run | Yrd Mat Mat Sto Slots Evolved 2 | . . 2 . Power . | . . . . Propulsion 2 | . . 2 . Utility . | . . . . Weapon . | . . . . Parts Attached 45 | 6 9 8 22 Power 6 | 1 . 2 3 Engine 6 | 1 . 2 3 Core . | . . . . Reactor . | . . . . Propulsion 21 | 2 6 4 9 Treads 2 | 2 . . . Leg 2 | . . . 2 Wheel . | . . . . Hover 6 | . 3 1 2 Flight 11 | . 3 3 5 Utility 5 | 1 1 2 1 Device 2 | . . 1 1 Storage 2 | 1 . 1 . Processor . | . . . . Hackware . | . . . . Protection 1 | . 1 . . Artifact . | . . . . Weapon 13 | 2 2 . 9 Energy Gun 4 | 1 1 . 2 Energy Cannon 3 | . . . 3 Ballistic Gun 3 | 1 . . 2 Ballistic Cannon . | . . . . Launcher 3 | . 1 . 2 Special Weapon . | . . . . Impact Weapon . | . . . . Slashing Weapon . | . . . . Piercing Weapon . | . . . . Special Melee Weapon . | . . . . Unidentified Prototypes 6 | . . . 6 Parts Lost 17 | . 4 4 9 Power 1 | . 1 . . Propulsion 9 | . 2 3 4 Utility 1 | . . . 1 Weapon 6 | . 1 1 4 Highest Loss Streak 6 | . 2 3 6 To Critical Strikes . | . . . . Average Backups 6 | . 6 7 6 Power . | . . . . Propulsion 2 | . 3 3 1 Utility . | . . 1 . Weapon 3 | . 2 3 3 Tool/Special . | . . . . Unused Backups 12 | . . 3 9 Power 1 | . . . 1 Propulsion 3 | . . 1 2 Utility 4 | . . 2 2 Weapon 4 | . . . 4 Tool/Special . | . . . . Average Slot Usage (%) 89 | . 84 89 93 Engine 11 | . 13 8 11 Hover 5 | . 6 15 . Flight 27 | . 14 22 36 Device 6 | . . 6 10 Storage 11 | . 14 11 11 Protection 2 | . 6 5 . Energy Gun 3 | . 1 10 2 Energy Cannon 3 | . . . 5 Ballistic Gun 10 | . 14 11 7 Launcher 5 | . 11 . 5 Peak Build Rating 26 | 6 7 11 26 Average Rating 13 | 4 5 8 20 On Entrance 5 | . 6 6 11 Avg Prop Armor Cover (%) 6 | . . 9 6 Naked Turns . | . . . . Heaviest Build 26 | 11 13 15 26 Greatest Support 40 | 40 40 24 26 Greatest Overweight (x) 4 | . 4 2 4 Average Overweight (x) . | . . . . Largest Inventory Capacity 8 | 8 8 8 8 Average Capacity 7 | 6 8 8 8 Most Carried 8 | . 8 8 8 Average Carried 6 | . 6 7 6 Final Capacity 8 | 8 8 8 8 Final Carried 8 | . 7 8 5 Class Distribution -------------------- 60% | Mutant 26% | Sprinter 7% | Scavenger-Mutant 5% | Scavenger-Sprinter Dominant Class ---------------- Mutant | -10/Materials Mutant | -9/Materials Sprinter | -9/Storage Resources | -11 -10 -9 -9 ----------- Run | Yrd Mat Mat Sto Matter Collected 1255 | 196 258 192 609 Remotely . | . . . . Salvage Created 1771 | . 339 524 908 Parts 109 | . 27 30 52 Haulers Intercepted 6 | . 1 1 4 Recyclers Shooed 1 | . . . 1 Parts Field Recycled . | . . . . Retrieved Matter . | . . . . Parts Self-Destructed . | . . . . Prevented . | . . . . Parts Restored . | . . . . Kills | -11 -10 -9 -9 ------- Run | Yrd Mat Mat Sto Combat Hostiles Destroyed 38 | . 9 8 21 Guns 17 | . 4 7 6 Cannons 5 | . . . 5 AOE 15 | . 5 . 10 Classes Destroyed 10 | . 5 2 3 Worker 4 | . 2 1 1 Builder 1 | . . . 1 Hauler 6 | . 1 1 4 Recycler 4 | . . 2 2 Mechanic 1 | . . . 1 Operator 1 | . . . 1 Watcher 3 | . 1 2 . Swarmer 11 | . 3 4 4 Grunt 21 | . 6 1 14 Sentry 6 | . . 3 3 Best Kill Streak 10 | . 3 4 10 Combat Bots Only 5 | . 2 3 5 Max Kills in Single Turn 4 | . 3 1 4 Gunslinging . | . . . . Exploded 3 | . 2 . 3 Melee . | . . . . Uniques/NPCs Destroyed . | . . . . Combat | -11 -10 -9 -9 -------- Run | Yrd Mat Mat Sto Hostile Shots Fired 246 | . 38 56 152 Missed 102 | . 14 25 63 Hits 144 | . 24 31 89 Projectile 144 | . 24 31 89 AOE 1 | . . . 1 Critical Strikes 4 | . . 2 2 Damage Taken 1921 | . 361 360 1200 Core 473 | . 68 144 261 Absorbed by Shields . | . . . . Redirected to Shielding 38 | . 18 20 . Regen/Repaired (Parts) 38 | . 19 19 . Core Remaining (%) 86 | 100 72 . . Volleys Fired 217 | . 46 55 116 Largest 2 | . 2 2 2 Hottest 91 | . 50 70 91 Shots Fired 296 | . 54 88 154 Gun 241 | . 46 88 107 Cannon 33 | . . . 33 Launcher 22 | . 8 . 14 Special . | . . . . Kinetic 189 | . 46 55 88 Thermal 84 | . . 32 52 Explosive 22 | . 8 . 14 Electromagnetic 1 | . . 1 . Robot Hit Streak 16 | . 7 16 14 Robot Miss Streak 5 | . 2 4 5 Penetration Max . | . . . . Secondary Targets . | . . . . Shots Hit Robots 180 | . 38 61 81 Core Hits 88 | . 22 25 41 Critical Kills . | . . . . Critical Parts Destroyed 1 | . . . 1 Critical Strikes 4 | . . 3 1 Burn 3 | . . 3 . Destroy 1 | . . . 1 Melee Attacks . | . . . . Impact . | . . . . Slashing . | . . . . Piercing . | . . . . Sneak Attacks . | . . . . Combat Hostiles . | . . . . Follow-up Attacks . | . . . . Damage Inflicted 3714 | . 686 590 2438 Guns 1594 | . 279 590 725 Cannons 431 | . . . 431 Explosions 1689 | . 407 . 1282 Melee . | . . . . Ramming . | . . . . Kinetic 1253 | . 279 283 691 Thermal 752 | . . 287 465 Explosive 1689 | . 407 . 1282 Electromagnetic 20 | . . 20 . Impact . | . . . . Slashing . | . . . . Piercing . | . . . . Highest Corruption . | . . . . Average Corruption . | . . . . Corruption Purged . | . . . . Corruption Blocked . | . . . . Overload Shots . | . . . . Overflow Damage 48 | . 12 . 36 Projectiles 7 | . . . 7 Explosions 41 | . 12 . 29 Melee . | . . . . Knockbacks . | . . . . Impact . | . . . . Kinetic . | . . . . Secondary . | . . . . Self-Inflicted Damage 206 | . 58 . 148 Shots 7 | . 3 . 4 Rammed . | . . . . Targets Rammed . | . . . . Kicked . | . . . . Crushed . | . . . . Highest Temperature 619 | . 42 148 619 Average Temperature 115 | . 7 46 167 Received Heat Transfer 723 | . 114 114 495 Effects 27 | . . . 27 Shutdowns 2 | . . . 2 Energy Bleed 3 | . . . 3 Interference 4 | . . . 4 Matter Decay 5 | . . . 5 Short Circuit 4 | . . . 4 Damage (minor) 1 | . . . 1 Damage (major) 8 | . . . 8 Siege Activations . | . . . . Martial Activations . | . . . . Shielding Activations . | . . . . Robots Disrupted . | . . . . Combat Hostiles . | . . . . Robots Corrupted . | . . . . Combat Hostiles . | . . . . Parts Fried . | . . . . Impact Corruptions . | . . . . Robots Melted 1 | . . 1 . Combat Hostiles 1 | . . 1 . Parts Melted 5 | . . 4 1 Heat Transferred 1924 | . . 1073 851 Parts Sabotaged . | . . . . Parts Stolen . | . . . . Parts Stripped . | . . . . Power Chain Reactions . | . . . . Alert | -11 -10 -9 -9 ------- Run | Yrd Mat Mat Sto Maximum Alert Level 2 | . . . 2 Low Security (%) 62 | 100 100 100 24 Level 1 9 | . . . 19 Level 2 27 | . . . 55 Level 3 . | . . . . Level 4 . | . . . . Level 5 . | . . . . High Security . | . . . . Max Security . | . . . . Peak Influence 515 | . 136 157 515 Initial 59 | . . 57 59 Average 204 | . 68 118 329 Influence Increases 1487 | . 343 285 859 Destroy 0b10 Robot/C 760 | . 180 160 420 Destroy 0b10 Robot/NC 100 | . 20 30 50 Destroy Leader 228 | . 54 56 118 Successful Hack 54 | . 21 8 25 Disable Machine 105 | . 15 . 90 Destroy Structure 165 | . 53 1 111 Partial Spotted 30 | . . . 30 Lose Combat Pursuer 45 | . . 30 15 Influence Decreases 1087 | . 207 279 601 Entered New Map 162 | . . 79 83 Time Decay 695 | . 167 160 368 Lost Part 170 | . 40 40 90 Lost Ally 60 | . . . 60 Squads Dispatched 15 | . 3 3 9 Investigation 8 | . 2 2 4 Extermination . | . . . . Reinforcement 5 | . 1 1 3 Assault 1 | . . . 1 Garrison 1 | . . . 1 Intercept . | . . . . Searches Triggered . | . . . . Construction Impeded . | . . . . Haulers Reinforced . | . . . . Active Scanning Responses . | . . . . Cargo Convoy Interrupts . | . . . . Stealth | -11 -10 -9 -9 --------- Run | Yrd Mat Mat Sto Distress Signals 5 | . 3 1 1 Communications Jammed . | . . . . Distress Signals . | . . . . Times Spotted 64 | . 17 15 32 Peak Tracking Total 7 | . 4 5 7 Tactical Retreats 3 | . . 2 1 Traps | -11 -10 -9 -9 ------- Run | Yrd Mat Mat Sto Traps Triggered 2 | . 1 . 1 Indirectly . | . . . . Trap Hack Attempts . | . . . . Triggered . | . . . . Disarmed . | . . . . Reprogrammed . | . . . . Reused . | . . . . Traps Extracted . | . . . . Installed . | . . . . Triggered . | . . . . Machines | -11 -10 -9 -9 ---------- Run | Yrd Mat Mat Sto Machines Disabled 7 | . 1 . 6 Max in Single Turn 2 | . 1 . 2 Garrison Access 1 | . . . 1 Machines Repaired . | . . . . Machines Dismantled . | . . . . Machines Sabotaged . | . . . . Overloaded Fab Kills . | . . . . Hacking | -11 -10 -9 -9 --------- Run | Yrd Mat Mat Sto Machines Accessed 20 | . 6 4 10 Terminals 12 | . 4 2 6 Fabricators . | . . . . Repair Stations 3 | . 1 1 1 Recycling Units 3 | . 1 . 2 Scanalyzers 1 | . . 1 . Garrison Access 1 | . . . 1 Total Hacks 69 | . 21 16 32 Successful 34 | . 11 9 14 Failed 35 | . 10 7 18 Catastrophic 3 | . 1 1 1 Database Lockouts . | . . . . Manual 6 | . . . 6 Terminals 39 | . 13 6 20 Fabricators . | . . . . Repair Stations 10 | . 4 3 3 Recycling Units 12 | . 4 . 8 Scanalyzers 7 | . . 7 . Garrison Access 1 | . . . 1 Terminal Hacks 15 | . 5 2 8 Record 2 | . . . 2 Robot Analysis 2 | . . 2 . Open Door 2 | . . . 2 Emergency Access Points 1 | . 1 . . Locate Traps 2 | . 1 . 1 Transport Status 1 | . 1 . . Reinforcement Status 1 | . . . 1 Hauler Manifests 1 | . 1 . . Zone Layout 3 | . 1 . 2 Fabricator Hacks . | . . . . Repair Station Hacks 6 | . 3 2 1 Scan Component 4 | . 2 1 1 Repair 2 | . 1 1 . Recycling Unit Hacks 7 | . 3 . 4 Recycle Component 1 | . 1 . . Report Inventory 3 | . 1 . 2 Retrieve Matter 2 | . 1 . 1 Retrieve Components 1 | . . . 1 Scanalyzer 5 | . . 5 . Insert Component 1 | . . 1 . Analyze 1 | . . 1 . Retrieve Study 3 | . . 3 . Garrison Access Hacks 1 | . . . 1 Seal Access 1 | . . . 1 Unauthorized Hacks . | . . . . Terminals . | . . . . Fabricators . | . . . . Repair Stations . | . . . . Recycling Units . | . . . . Scanalyzers . | . . . . Garrison Access . | . . . . Data Cores Recovered . | . . . . Used . | . . . . Hacking Detections 19 | . 5 4 10 Full Trace Events 9 | . 3 2 4 Feedback Events . | . . . . Feedback Blocked . | . . . . Robot Schematics Acquired . | . . . . Robots Built . | . . . . Authchips . | . . . . Time . | . . . . Total Robot Build Rating . | . . . . Part Schematics Acquired 1 | . . 1 . Parts Built . | . . . . Authchips . | . . . . Time . | . . . . Total Part Build Rating . | . . . . Part Studies Acquired 3 | . . 3 . Parts Repaired 2 | . 1 1 . Time 52 | . 26 26 . Parts Recycled 1 | . 1 . . Recycled Matter . | . . . . Retrieved Matter . | . . . . Retrieved Components 8 | . . . 8 Parts Scanalyzed 1 | . . 1 . Part Schematics Acquired 1 | . . 1 . Parts Damaged . | . . . . Bothacking | -11 -10 -9 -9 ------------ Run | Yrd Mat Mat Sto Used RIF Installer . | . . . . Robots Hacked . | . . . . Non-combat . | . . . . Combat . | . . . . Robot Hacks Applied . | . . . . Relay Couplers Released . | . . . . Fabnet Peak Effective % . | . . . . Robots Rewired . | . . . . Allies Hacked . | . . . . Hacks Repelled . | . . . . Allies | -11 -10 -9 -9 -------- Run | Yrd Mat Mat Sto Total Allies . | . . . . Largest Group . | . . . . Highest-Rated Group . | . . . . Highest-Rated Ally . | . . . . Total Orders 4 | . . . 4 FOLLOW 1 | . . . 1 EXPLORE 3 | . . . 3 Ally Attacks . | . . . . Total Damage . | . . . . Kills . | . . . . Allies Corrupted . | . . . . Allies Melted . | . . . . Intel | -11 -10 -9 -9 ------- Run | Yrd Mat Mat Sto Active Infowar (turns) . | . . . . Robot Analysis Total 2 | . . 2 . Derelict Logs Recovered . | . . . . Drone Launches 6 | . . . 6 Drone Recoveries . | . . . . Exploration | -11 -10 -9 -9 ------------- Run | Yrd Mat Mat Sto Turns Passed 1711 | 59 479 326 847 Spaces Moved 1410 | 35 292 314 769 Core 5 | 4 1 . . Treads 36 | 31 5 . . Legs 47 | . . . 47 Wheels . | . . . . Hover 192 | . 133 58 1 Flight 1130 | . 153 256 721 Fastest Speed 31 | 50 56 31 31 Average Speed 66 | 147 116 42 53 Slowest Speed 360 | 160 280 200 360 Overloaded Moves . | . . . . Propulsion Burnouts . | . . . . Robots Hopped 2 | . . 2 . Potential Cave-ins . | . . . . Cave-ins Triggered . | . . . . Exploration Rate (%) 36 | 3 56 22 64 Regions Visited 3 Branch Regions 1 Pre-discovered Areas . | . . . . Known Exits Taken . | . . . . Unknown Exits Taken 3 | 1 1 1 . Scrap Searched . | . . . . Spaces Dug . | . . . . Terrain Destroyed 159 | . 49 . 110 Melee . | . . . . Projectile . | . . . . AOE 159 | . 49 . 110 Terrain Rammed . | . . . . Walls Destroyed . | . . . . Machines Disabled . | . . . . Actions | -11 -10 -9 -9 --------- Run | Yrd Mat Mat Sto Total 1904 | 40 384 427 1053 Wait 145 | . 26 29 90 Move 1403 | 34 291 309 769 Hop 2 | . . 2 . Pick Up 31 | . 5 9 17 Fast Attach 33 | 6 8 6 13 Attach 11 | . 2 3 6 Detach 8 | . 5 1 2 Swap 18 | . 1 4 13 Drop 31 | . . 9 22 Fire 217 | . 46 55 116 Melee . | . . . . Ram . | . . . . Kick . | . . . . Crush . | . . . . Escape Stasis . | . . . . Rewire 2 | . . . 2 Trap . | . . . . Miscellaneous 3 | . . . 3 Route ------- -11/Scrapyard -10/Materials (discovered 2 exits: *Mat / [Min]) -9/Materials -9/Storage (discovered 1 exit: [*Mat]) History --------- Turn | Location | Event 10 | -11/Scrapyard | Discovered new exit (range 15) 60 | -11/Scrapyard | Entered Materials 326 | -10/Materials | Build established: Mutant 337 | -10/Materials | Repaired Flight Unit 419 | -10/Materials | Discovered new exit (range 10) 512 | -10/Materials | Discovered new exit (range 18) 539 | -10/Materials | Entered another Materials area 539 | -9/Materials | Evolved 2 slots: Propulsion x2 644 | -9/Materials | Lost 3 parts (2n1w) 727 | -9/Materials | Discovered new exit (range 5) 810 | -9/Materials | Repaired Flight Unit 865 | -9/Materials | Entered Storage 1063 | -9/Storage | Core integrity fell below 50% 1143 | -9/Storage | Garrison activated, responded to threat 1220 | -9/Storage | Build established: Sprinter 1388 | -9/Storage | Core integrity fell below 20% 1454 | -9/Storage | Lost 3 allies 1560 | -9/Storage | Discovered new exit (range 16) 1583 | -9/Storage | Lost 6 parts (3n1u2w) 1665 | -9/Storage | First assault squad dispatched 1712 | -9/Storage | Destroyed by G-34 Mercenary with Small Laser Last Messages --------------- A-02 Transporter destroyed. K-01 Serf collects debris. Acquired 42 matter. Acquired Aluminum Leg. K-01 Serf collects debris. Acquired Aluminum Leg. Acquired 26 matter. Extracted 50 matter. ALERT: Unidentified disturbance in Zone 9R, assault force dispatched. [Achievement: Significant Disruption] Connecting with Terminal... ALERT: Suspicious activity at Terminal S004. Dispatching Investigation squad. Acquired Imp. Hover Unit. K-01 Serf suffers critical hit (Burn). K-01 Serf destroyed. K-01 Serf collects debris. Acquired 94 matter. Critical hit (Burn: +37). K-01 Serf collects debris. Map ----- +----------------------------------------------------+ | ?????????????????????????????????????? | | ?????????????????????????????????????? | | ?????????????????????????????????????? | | ?????????????????????????????????????? | | ??????????????#####??????????????????? | | ???????????? ??????????????????? | | ???????????? ??????????????????? | | ????????????# ?????????????????? | | ????????????# +??????????????### | | ????????????# #########??????#** | | ????????????# #??????# | | ????????????# #??????#** | | ????????????+ #?????#### | | ????????????# """"" #?????#### | | ????????????# """"" #????????? | | ????????????+ """"" ##########? | | ?????????????# # """"" ## | | ??????????#### # ""T"" # | | ??????????? # # # | | ???????????? " !! + ]] # | | ?????????????# !% # ] # | | ?????????????# g # ] # | | ?????????????# l g a # [ # | | ?????????????#[ %g # # | | ??????########[ g *!# # | | ??????# @ * =%!########## | | ??????# < [ !k*########### | | ??????# !!!% | | ??????###################;########## | | ???????????????????##### %#????????# | | ???????????????????# !! %[#????????### | | ???????????????????#!!!" #??????????? | | ???????????????????#####T##??????????? | | ???????????????????????###???????????? | | ?????????????????????????????????????? | | ?????????????????????????????????????? | | ?????????????????????????????????????? | | ?????????????????????????????????????? | | ?????????????????????????????????????? | | | | | | | | | | | | | | | | | | | | | | | +----------------------------------------------------+ Best States ------------- Heat Dissipation 28 Energy Generation 14 Energy Capacity 280 Matter Stores 300 Matter Capacity 300 Sight Range 16 Terrain Scan Density 10 Additional Mass Support 6 Propulsion Shielding 33 Evasion (%) 63 Recoil Reduction 2 Item Schematics ----------------- Hover Unit | -9/Materials | Scanalyzed Robot Schematics ------------------ None Fabricated ------------ Nothing Repaired ---------- Flight Unit | 5% | -10/Materials Flight Unit | 5% | -9/Materials Studied --------- Imp. Ion Engine | -9/Materials | Hacked Flight Unit | -9/Materials | Hacked Hover Unit | -9/Materials | Hacked Alien Tech Used ----------------- None Achievements -------------- Release The Drones! Significant Disruption Throw Away The Key Challenges ------------ None Game ------ Seed MomentumBackupWyrmplate Manual? 0 Play Time 00:59:19 Cumulative 8.1 hours Start 2026.07.04 @ 15:35:34 End 2026.07.04 @ 18:48:41 Sessions 3 Manual Loads 0 Difficulty Rogue Special Mode None Game No. 9 Rogue 9 Adventurer 0 Explorer 0 Win Type - Total 0 Types 0/0/0/0/0/0/0/0/0/0 Lore% 6 Gallery% 12 Achievement% 11 Wizard Run 0 Options --------- Layout 0 ASCII 0 Keyboard 1 Movement Numpad Keybinds 0 Fullscreen 1 Font 18/SmallcapsGlow Map View 76x50 Zoom Use 0% Tactical HUD 0 Map Filters NONE Filters NONE Steam 1 RUN: 8205ca76-f00e-4db8-ad42-8f88c3ba5050